bitfinex/quotes_ETHUSD_20250801
["timestamp","ask_amount","ask_price","bid_price","bid_amount"]
[1754070217993,8.40602762,3586.5,3585.7,3.0]
[1754070217994,0.89560276,3586.4,3585.7,3.0]
[1754070218168,0.89560276,3586.4,3586.0,2.78857174]
[1754070218370,4.586,3586.3,3586.0,1.0732]
[1754070218579,4.586,3586.2,3585.3,1.0732]
[1754070218785,4.586,3586.2,3585.0,1.0732]
[1754070218786,4.585,3586.1,3585.0,1.0732]
[1754070218978,0.55,3586.0,3585.1,2.78926617]
[1754070219299,4.585,3585.9,3585.4,2.78904559]
[1754070219465,4.585,3585.9,3585.2,3.0]
[1754070219666,0.1392,3585.8,3585.3,0.1392]
[1754070220195,0.5951,3585.7,3585.3,0.1392]
[1754070220354,3.5551,3585.6,3585.3,0.1392]
[1754070220549,0.6892,3585.4,3584.7,2.92877518]
[1754070220753,0.1392,3585.2,3584.8,2.78953859]
[1754070221011,0.1392,3585.2,3584.7,0.1392]
[1754070221012,0.55,3585.0,3584.7,0.1392]
[1754070221154,0.1392,3584.8,3584.1,0.1392]
[1754070221353,0.5951,3585.0,3583.3,2.79065417]
[1754070221354,4.585,3584.7,3584.5,3.0]
[1754070221581,4.585,3584.7,3584.4,5.92904426]
[1754070221792,4.585,3584.7,3584.4,0.1392]
[1754070221965,4.7242,3584.7,3584.2,0.1392]
[1754070222174,1.1451,3584.6,3583.2,0.6355]
[1754070222390,1.1451,3584.6,3583.5,0.20948362]
[1754070222693,4.584,3584.5,3583.8,3.0]
[1754070222916,4.584,3584.4,3584.3,2.78988572]
[1754070223196,4.585,3584.4,3584.3,3.86314503]
[1754070223692,0.5951,3585.8,3584.3,2.03851821]
[1754070223857,0.5951,3585.8,3584.5,2.78978937]
[1754070223858,4.585,3585.7,3584.5,2.78978937]
[1754070224052,0.5951,3585.8,3585.3,2.78911158]
[1754070224256,4.585,3585.7,3585.4,2.78906505]
[1754070224588,4.585,3585.7,3585.0,0.6355]
[1754070224589,0.5951,3585.6,3585.0,2.78937921]
[1754070225101,0.5951,3585.6,3585.1,3.0]
[1754070225314,0.5951,3585.6,3584.5,0.4377]
[1754070225315,1.1451,3585.5,3584.5,0.4377]
[1754070225601,1.1451,3585.5,3585.0,2.78934223]
[1754070225602,0.55,3585.5,3585.0,2.78934223]
[1754070225803,4.584,3585.4,3585.2,2.78921779]
[1754070226006,4.584,3585.3,3585.2,3.84081779]
[1754070226215,4.584,3585.3,3584.3,1.0516]
[1754070226369,4.584,3585.3,3584.9,2.78941166]
[1754070226570,4.584,3585.3,3585.1,3.0]
[1754070226888,4.584,3585.2,3585.1,0.57893992]
[1754070227084,4.584,3585.2,3584.8,3.0]
[1754070227302,4.584,3585.2,3585.1,2.78932247]
[1754070227618,4.584,3585.2,3585.1,3.84092247]
[1754070228208,4.584,3585.2,3585.1,6.84092247]
[1754070228923,4.584,3585.2,3585.1,3.0]
[1754070229074,5.0424,3585.2,3585.1,3.0]
[1754070229410,5.6705,3585.2,3584.1,0.5924]
[1754070229620,5.6705,3585.2,3584.7,3.0]
[1754070229910,5.6705,3585.2,3584.5,3.0]
[1754070230118,5.6705,3585.2,3584.7,3.0]
[1754070230315,5.6705,3585.2,3584.7,2.78962462]
[1754070230520,5.0424,3585.2,3584.9,3.0]
[1754070230814,4.583,3585.1,3585.0,2.78940027]
[1754070231016,0.55,3585.8,3585.1,5.78927055]
[1754070231172,0.6281,3585.9,3585.3,2.78910784]
[1754070231372,2.41,3586.2,3584.6,2.7896601]
[1754070231573,2.41,3586.2,3584.5,3.0]
[1754070231574,4.582,3586.1,3585.0,3.0]
[1754070231814,4.582,3586.1,3585.7,2.78880684]
[1754070232324,0.6281,3586.0,3585.7,0.1392]
[1754070232474,4.582,3586.1,3585.7,0.1392]
[1754070232905,4.582,3586.1,3585.0,3.0]
[1754070232906,3.33870684,3585.9,3585.0,3.0]
[1754070233226,0.55,3585.4,3583.5,3.0034391]
[1754070233549,0.1392,3585.2,3584.8,3.0]
[1754070233857,0.1392,3585.2,3584.7,0.1392]
[1754070233858,2.41,3585.1,3584.7,2.92883325]
[1754070234158,2.41,3585.1,3584.8,3.0]
[1754070234528,2.41,3585.1,3584.7,2.92883325]
[1754070234529,2.41,3585.1,3584.7,0.1392]
[1754070234903,0.6281,3585.0,3583.0,2.79092289]
[1754070235104,0.1392,3584.9,3584.4,0.1392]
[1754070235407,5.2091,3584.8,3584.1,3.0]
[1754070235626,5.2091,3584.8,3583.2,1.0516]
[1754070235627,0.55,3584.5,3583.2,1.0516]
[1754070235825,0.1392,3584.3,3583.7,0.1392]
[1754070236021,4.581,3584.2,3583.2,1.0516]
[1754070236223,0.1392,3584.0,3583.4,0.1392]
[1754070236734,2.92939013,3584.0,3583.4,0.1392]
[1754070236932,0.1392,3584.0,3583.4,0.1392]
[1754070237132,4.06839239,3584.0,3583.4,0.1392]
[1754070237337,4.06839239,3584.0,3583.1,3.0]
[1754070237338,1.76709112,3584.0,3582.8,0.21393144]
[1754070237570,0.1392,3583.8,3583.3,0.1392]
[1754070237848,4.58,3583.7,3583.4,1.0516]
[1754070238038,4.58,3583.7,3583.5,0.1392]
[1754070238239,4.58,3583.7,3583.6,2.92969001]
[1754070238411,0.1392,3584.2,3583.6,2.92969001]
[1754070238612,0.1392,3584.2,3583.6,0.34372717]
[1754070238811,4.581,3584.1,3584.0,2.79017857]
[1754070239051,4.581,3584.1,3584.0,5.79017857]
[1754070239712,4.581,3584.1,3584.0,6.84177857]
[1754070240330,6.702,3584.5,3584.1,3.0]
[1754070240660,6.702,3584.5,3584.4,2.7898672]
[1754070240824,11.282,3584.5,3584.4,3.9806672]
[1754070241028,11.282,3584.5,3584.4,7.93673208]
[1754070241353,4.58,3584.8,3584.7,2.78963372]
[1754070241554,4.58,3584.8,3584.7,6.84123372]
[1754070241766,2.41,3585.4,3584.7,6.98043372]
[1754070241948,6.8432,3586.2,3585.4,2.78904889]
[1754070242149,5.26432,3586.1,3585.2,0.5924]
[1754070242327,5.89242,3586.1,3584.7,1.0516]
[1754070242660,0.55,3586.0,3585.3,2.78910437]
[1754070243025,0.1392,3585.8,3585.3,0.1392]
[1754070243327,0.1392,3585.8,3585.3,2.92836428]
[1754070243527,0.1392,3585.8,3585.3,0.1392]
[1754070243843,4.579,3585.9,3585.4,1.0516]
[1754070244159,4.579,3585.9,3584.5,0.5924]
[1754070244160,0.55,3585.7,3584.5,0.5924]
[1754070244356,0.1392,3585.3,3584.8,2.92875134]
[1754070244562,4.578,3585.2,3584.9,3.0]
[1754070245139,5.2061,3585.2,3584.6,2.78968582]
[1754070245340,4.578,3585.1,3584.7,2.78960359]
[1754070245541,4.578,3585.1,3584.9,0.1392]
[1754070246065,4.578,3585.1,3585.0,2.92860027]
[1754070246251,4.578,3585.1,3585.0,0.1392]
[1754070246454,4.578,3585.1,3584.5,1.0516]
[1754070246762,4.578,3585.1,3584.9,0.1392]
[1754070248358,5.46783004,3585.1,3584.6,0.1392]
[1754070248533,4.578,3585.1,3584.5,3.24898937]
[1754070248930,5.2061,3585.1,3584.0,1.0516]
[1754070249130,2.78949663,3584.9,3584.0,4.0516]
[1754070249334,3.5881,3584.8,3583.6,0.20607709]
[1754070249555,3.5881,3584.8,3583.5,1.0516]
[1754070249556,0.1392,3584.5,3584.0,0.1392]
[1754070249755,1.23964449,3584.5,3584.0,0.1392]
[1754070249957,2.7900715,3584.2,3583.2,2.79078107]
[1754070250156,0.1392,3583.9,3583.4,0.1392]
[1754070250455,0.1392,3583.9,3583.6,3.0]
[1754070250664,0.1392,3584.2,3583.7,1.1908]
[1754070250838,4.576,3584.1,3583.9,3.1392]
[1754070251359,4.576,3584.1,3583.9,0.1392]
[1754070251563,4.576,3584.1,3583.9,2.92944442]
[1754070251734,7.94264449,3584.5,3583.9,0.1392]
[1754070251931,7.94264449,3584.5,3583.8,1.0516]
[1754070251932,4.575,3584.4,3583.8,1.0516]
[1754070252184,4.575,3584.3,3584.1,0.1392]
[1754070252669,1.1781,3584.2,3582.9,1.0516]
[1754070252873,1.59354659,3584.3,3583.1,2.7908794]
[1754070253036,1.59354659,3584.3,3582.7,0.21365306]
[1754070253037,4.575,3584.1,3583.8,0.1392]
[1754070254372,0.6281,3584.0,3583.1,2.79085801]
[1754070254580,0.6281,3584.0,3583.6,0.1392]
[1754070254886,0.6281,3583.9,3583.6,0.1392]
[1754070255062,4.16258263,3583.9,3583.6,0.1392]
[1754070255260,4.16258263,3583.9,3583.0,0.1392]
[1754070255261,0.6892,3583.7,3583.0,0.1392]
[1754070255463,0.1392,3583.5,3583.0,0.1392]
[1754070255864,0.1392,3583.5,3581.8,2.79187958]
[1754070255865,0.568,3583.4,3581.8,2.79187958]
[1754070256071,0.1392,3583.2,3582.7,0.1392]
[1754070256271,4.574,3583.1,3582.7,0.1392]
[1754070256595,5.142,3583.1,3582.7,0.1392]
[1754070257290,5.142,3583.1,3582.2,4.0558]
[1754070257291,5.10212,3583.1,3582.2,1.0558]
[1754070257493,5.10212,3583.1,3582.5,2.93050077]
[1754070257494,0.1392,3583.0,3582.5,2.93050077]
[1754070257698,0.1392,3583.0,3582.5,0.1392]
[1754070257912,0.7072,3583.0,3582.5,0.1392]
[1754070258090,0.1392,3583.0,3582.4,0.1392]
[1754070258391,0.1392,3583.0,3582.5,2.79129961]
[1754070258563,4.574,3583.1,3582.5,4.0558]
[1754070258757,4.573,3583.0,3582.7,2.79117149]
[1754070258985,4.573,3583.0,3582.7,0.4724]
[1754070259188,4.573,3583.0,3582.6,0.1392]
[1754070259570,4.573,3583.0,3582.7,1.0558]
[1754070259902,4.573,3582.9,3582.8,3.84685931]
[1754070260058,4.573,3582.9,3582.7,3.0]
[1754070260264,4.573,3582.9,3582.7,0.1392]
[1754070260464,4.573,3582.9,3582.8,2.79111309]
[1754070260659,0.1392,3583.2,3582.8,1.0558]
[1754070260859,4.573,3582.9,3582.8,2.79111309]
[1754070261355,4.573,3582.9,3582.8,2.93031309]
[1754070261555,4.573,3582.9,3582.8,0.1392]
[1754070261755,5.0303,3582.9,3581.1,2.79241674]
[1754070261954,5.0303,3582.9,3578.3,0.1]
[1754070261955,7.15682967,3581.2,3578.3,0.1]
[1754070262168,7.15682967,3579.4,3577.5,0.839265]
[1754070262396,0.1,3578.9,3577.0,0.14576638]
[1754070262598,0.1,3578.6,3577.6,0.4724]
[1754070262895,0.1,3578.4,3577.6,0.4724]
[1754070263356,0.1,3578.4,3577.6,3.26749324]
[1754070263562,0.1,3578.4,3577.6,0.4724]
[1754070263786,4.572,3578.3,3578.0,2.79483632]
[1754070263994,4.572,3578.3,3577.8,2.79500946]
[1754070264195,0.1,3578.4,3578.0,0.4724]
[1754070264381,4.572,3578.2,3578.0,0.4724]
[1754070264598,4.572,3578.2,3577.7,0.02795091]
[1754070264795,4.572,3578.2,3577.8,2.79493769]
[1754070264975,4.572,3578.2,3577.7,3.0]
[1754070265316,0.1,3578.1,3577.4,0.4724]
[1754070265517,0.1,3578.1,3576.1,0.18136193]
[1754070265657,4.572,3578.2,3575.9,0.5834]
[1754070265658,0.1,3577.7,3576.6,0.2058607]
[1754070265859,0.1,3577.0,3576.2,0.4724]
[1754070266203,6.708,3577.6,3576.2,0.4724]
[1754070266204,0.1,3576.8,3576.2,0.4724]
[1754070266497,8.26464609,3577.6,3576.6,2.79593181]
[1754070266498,4.574,3576.7,3576.6,2.79593181]
[1754070266710,4.574,3576.7,3576.6,3.26827959]
[1754070266919,0.1,3577.1,3576.4,3.0]
[1754070267213,0.81697103,3576.7,3576.6,5.79595146]
[1754070267561,0.81697103,3576.7,3576.6,6.26835146]
[1754070267763,0.81697103,3576.7,3576.6,6.85175146]
[1754070267962,6.708,3577.6,3577.5,2.79524807]
[1754070268185,11.284,3577.6,3577.5,6.26764807]
[1754070268382,11.284,3577.6,3577.5,6.12182876]
[1754070268908,4.576,3577.7,3577.6,5.79516994]
[1754070269211,4.575,3577.7,3577.6,6.26756994]
[1754070269396,0.1,3578.3,3578.2,2.79462877]
[1754070269714,4.675,3578.3,3578.2,2.79462877]
[1754070270289,4.575,3578.3,3578.2,3.26702877]
[1754070270488,0.1,3578.3,3578.2,2.79462877]
[1754070270685,4.675,3578.3,3578.2,2.79462877]
[1754070270886,4.575,3578.3,3577.8,3.4724]
[1754070271092,4.675,3578.3,3578.1,3.0]
[1754070271429,4.675,3578.3,3577.9,2.79488963]
[1754070271624,0.1,3578.3,3578.2,2.79470124]
[1754070271930,0.1,3578.5,3578.4,2.79454504]
[1754070272091,4.576,3578.5,3578.4,2.79454504]
[1754070272437,10.0,3578.6,3578.5,2.79446695]
[1754070272739,10.0,3578.6,3578.5,6.26686695]
[1754070272888,4.576,3578.9,3578.8,2.7942327]
[1754070273083,4.576,3579.0,3578.9,5.79415462]
[1754070273317,4.576,3579.0,3578.9,3.4724]
[1754070273482,6.712,3580.3,3579.3,2.79382814]
[1754070273687,6.712,3580.3,3578.9,0.4724]
[1754070273910,0.1,3579.8,3579.2,3.0]
[1754070274110,6.712,3580.3,3579.3,0.50033842]
[1754070274324,6.712,3580.3,3580.2,2.79314004]
[1754070274634,6.712,3580.3,3580.2,3.26554004]
[1754070274837,0.1,3580.8,3580.2,3.4724]
[1754070274992,4.576,3580.7,3580.6,2.79282801]
[1754070275194,6.713,3581.7,3580.2,3.4724]
[1754070275431,6.713,3581.7,3580.3,0.02793062]
[1754070275613,4.576,3581.6,3580.5,3.0]
[1754070275804,0.1,3580.8,3580.7,2.79275002]
[1754070276000,4.676,3580.8,3580.7,2.79275002]
[1754070276233,4.676,3580.8,3580.6,2.79282801]
[1754070276418,4.676,3580.8,3580.7,2.79275002]
[1754070276620,4.676,3580.8,3580.6,2.79280974]
[1754070276822,0.1,3580.5,3580.4,2.79298402]
[1754070276990,0.1,3580.5,3580.0,3.0]
[1754070277195,0.1,3580.5,3579.9,0.4724]
[1754070277440,0.1,3580.6,3580.5,2.79290601]
[1754070277825,4.675,3580.6,3580.5,2.79290601]
[1754070278352,4.675,3580.6,3579.8,3.4724]
[1754070278499,4.675,3580.6,3580.4,2.79292692]
[1754070278704,4.675,3580.6,3579.8,3.4724]
[1754070278904,4.675,3580.6,3579.8,0.4724]
[1754070279139,4.675,3580.6,3580.2,3.0]
[1754070279321,0.1,3580.1,3579.2,0.4724]
[1754070279528,4.575,3580.0,3579.6,3.0]
[1754070279712,4.575,3580.0,3579.3,2.79383947]
[1754070279713,0.1,3579.8,3579.3,2.79383947]
[1754070279902,0.1,3579.8,3578.7,0.4724]
[1754070280098,0.1,3579.8,3578.9,3.0]
[1754070280336,0.1,3579.8,3579.0,2.79400269]
[1754070280506,0.1,3579.4,3577.9,0.4724]
[1754070280701,4.575,3579.3,3578.2,2.79469318]
[1754070280906,4.575,3579.3,3578.8,2.79423244]
[1754070281101,4.575,3579.3,3578.3,0.4724]
[1754070281102,0.1,3579.1,3578.3,0.4724]
[1754070281307,4.575,3579.3,3578.8,2.79416901]
[1754070281515,4.575,3579.3,3579.1,2.79392644]
[1754070281726,0.1,3579.4,3578.8,0.4724]
[1754070281932,4.575,3579.3,3579.2,2.79392042]
[1754070282248,4.574,3579.3,3579.2,2.7939171]
[1754070282447,4.674,3579.3,3579.2,0.14]
[1754070282627,0.1,3578.8,3578.3,2.79456675]
[1754070282832,4.574,3578.7,3577.8,0.4724]
[1754070283035,0.1,3578.3,3576.7,2.79585175]
[1754070283208,0.1,3578.3,3577.1,3.26791309]
[1754070283405,4.575,3578.2,3578.1,0.14]
[1754070283751,0.1,3578.1,3577.9,0.14]
[1754070284541,4.575,3578.0,3577.9,0.14]
[1754070288405,0.1,3577.7,3577.5,3.0]
[1754070288937,0.1,3577.7,3577.6,0.14]
[1754070289328,0.1,3577.7,3576.7,0.4604]
[1754070289329,0.1,3577.7,3577.3,3.0]
[1754070289523,4.575,3578.0,3577.4,2.93525523]
[1754070289524,4.575,3577.6,3577.4,2.93525523]
[1754070289828,0.1,3578.0,3577.9,2.79493557]
[1754070290062,4.675,3578.0,3577.5,3.3956474]
[1754070290259,4.675,3578.0,3577.2,3.0]
[1754070290260,4.675,3578.0,3577.9,2.79493557]
[1754070290660,4.675,3578.0,3577.9,3.25533557]
[1754070291069,4.575,3578.0,3577.9,3.25533557]
[1754070291263,4.675,3578.0,3577.8,0.14]
[1754070291429,4.675,3577.9,3577.8,0.14]
[1754070291624,4.675,3577.9,3577.8,2.93501369]
[1754070291825,0.1,3578.6,3578.2,2.79470124]
[1754070292137,5.14391907,3579.4,3578.5,2.93446695]
[1754070292340,0.1,3578.4,3578.2,0.4604]
[1754070292552,4.575,3578.3,3577.7,0.4604]
[1754070292768,0.1,3578.0,3577.9,5.79493557]
[1754070292967,0.1,3577.7,3577.2,0.4604]
[1754070293171,4.575,3577.6,3577.2,0.4604]
[1754070293349,4.575,3577.6,3577.4,3.0]
[1754070293549,4.575,3577.6,3577.5,0.14]
[1754070293758,3.39814537,3578.3,3577.5,3.14]
[1754070293759,0.1,3577.9,3577.5,3.14]
[1754070293991,0.1,3577.6,3577.5,3.6004]
[1754070294170,4.675,3577.6,3577.5,5.79524807]
[1754070294374,4.675,3577.6,3577.5,5.93524807]
[1754070294986,4.575,3577.6,3577.5,6.39564807]
[1754070295168,0.1,3578.0,3577.9,2.79493557]
[1754070295378,0.1,3577.8,3577.7,2.79509181]
[1754070295885,0.1,3577.8,3577.7,2.93509181]
[1754070295886,4.575,3577.8,3577.7,2.93509181]
[1754070296587,4.575,3577.8,3577.7,6.39549181]
[1754070296792,0.1,3578.1,3578.0,2.79485746]
[1754070296953,4.675,3578.1,3577.9,3.0]
[1754070297156,4.675,3578.1,3577.5,5.79517941]
[1754070297157,0.1,3577.6,3577.5,5.79517941]
[1754070297351,0.1,3578.0,3577.8,2.93500588]
[1754070297557,0.1,3578.0,3577.8,2.79500588]
[1754070297858,4.574,3577.9,3577.8,0.14]
[1754070298370,4.574,3577.9,3577.5,3.0]
[1754070298568,4.574,3577.9,3572.0,5.6051553]
[1754070298569,2.79524807,3577.5,3572.0,5.6051553]
[1754070298894,0.1,3575.1,3574.6,0.4604]
[1754070299067,4.63,3575.0,3574.6,0.4604]
[1754070299270,4.628,3574.9,3574.8,2.79732329]
[1754070299492,4.628,3574.9,3574.8,6.25772329]
[1754070299695,4.628,3574.9,3574.8,6.39772329]
[1754070299896,4.627,3575.0,3574.8,0.6004]
[1754070300098,0.1,3575.1,3574.9,0.4604]
[1754070300399,4.627,3575.0,3574.9,6.25768104]
[1754070300688,0.1,3575.3,3574.9,6.25768104]
[1754070300689,0.1,3575.3,3575.2,2.79704631]
[1754070300896,0.1,3575.7,3575.6,2.79673341]
[1754070301056,4.726,3575.7,3575.5,2.79673467]
[1754070301258,0.1,3575.4,3575.0,3.0]
[1754070301566,4.626,3575.7,3575.2,2.79704631]
[1754070301567,4.627,3575.3,3575.2,2.79704631]
[1754070301889,0.1,3575.7,3575.3,0.14]
[1754070302082,0.1,3575.3,3575.2,2.93704631]
[1754070302394,0.1,3575.7,3575.6,2.93673341]
[1754070302782,4.728,3575.7,3575.6,0.14]
[1754070303002,11.995,3575.7,3575.6,0.14]
[1754070303298,0.1,3574.9,3574.8,2.79735929]
[1754070303469,4.728,3574.9,3574.8,2.79735929]
[1754070303670,7.267,3575.7,3574.8,2.79735929]
[1754070303671,0.1,3575.3,3574.8,3.4604]
[1754070303875,0.1,3575.3,3574.9,0.4604]
[1754070304100,4.629,3575.2,3575.1,2.79712455]
[1754070304402,0.1,3575.5,3575.4,2.79688985]
[1754070304700,0.1,3575.5,3575.0,2.79716011]
[1754070304701,4.73,3575.5,3575.3,2.79694921]
[1754070304896,0.1,3575.5,3575.4,2.79688985]
[1754070305196,4.727,3575.5,3575.4,2.93688043]
[1754070305358,0.1,3575.5,3575.4,0.14]
[1754070305564,0.1,3575.5,3575.4,2.93688985]
[1754070305800,4.725,3575.5,3575.4,2.93688985]
[1754070306167,6.717,3575.7,3575.6,2.79673341]
[1754070306368,0.1,3575.5,3575.4,0.14]
[1754070306568,0.1,3575.5,3575.4,2.79688985]
[1754070306803,0.1,3575.5,3575.4,2.93688985]
[1754070307105,4.623,3575.5,3575.4,2.93688985]
[1754070307300,4.722,3575.5,3575.4,2.93688985]
[1754070307506,4.622,3575.5,3575.4,2.93688985]
[1754070307821,4.722,3575.5,3575.4,2.93688985]
[1754070308224,4.622,3575.5,3575.4,2.93688985]
[1754070308387,4.722,3575.5,3575.4,2.93688985]
[1754070308783,4.722,3575.5,3575.4,0.14]
[1754070308784,0.1,3575.5,3575.4,0.14]
[1754070309189,0.1,3575.5,3573.5,0.21109302]
[1754070309190,4.723,3575.5,3575.2,2.79698829]
[1754070309388,0.1,3575.3,3575.2,2.79698829]
[1754070309624,0.1,3575.5,3575.4,0.14]
[1754070309929,4.722,3575.5,3575.4,0.14]
[1754070310097,4.722,3575.5,3575.4,2.93688985]
[1754070310298,4.722,3575.5,3575.4,0.14]
[1754070310813,0.1,3575.5,3575.4,0.14]
[1754070311008,4.723,3575.5,3575.4,0.14]
[1754070311218,4.718,3575.5,3575.4,2.93688985]
[1754070311392,5.268,3575.5,3575.4,0.14]
[1754070311596,0.1,3575.5,3575.4,2.79688985]
[1754070311985,4.721,3575.5,3575.3,2.93689894]
[1754070312185,0.1,3575.5,3575.4,2.79688985]
[1754070312388,0.1,3575.5,3575.3,0.14]
[1754070312389,4.719,3575.5,3575.3,0.14]
[1754070312627,0.1,3575.5,3575.3,0.14]
[1754070312924,4.619,3575.4,3575.3,2.93696808]
[1754070313131,5.169,3575.4,3574.8,2.79735879]
[1754070313332,5.169,3575.4,3574.8,5.79735929]
[1754070313333,0.1,3574.9,3574.8,5.79735929]
[1754070313530,4.717,3574.9,3574.8,5.79735929]
[1754070313737,4.617,3574.9,3574.8,5.93735929]
[1754070314030,4.717,3574.9,3574.8,5.93735929]
[1754070314189,0.1,3574.9,3574.8,5.93735929]
[1754070314391,0.1,3575.1,3575.0,2.79720279]
[1754070314587,4.716,3575.1,3575.0,2.79720279]
[1754070315135,4.714,3575.1,3575.0,2.79720279]
[1754070315343,0.1,3575.3,3575.2,2.79704631]
[1754070315533,4.714,3575.3,3575.2,3.26484631]
[1754070315731,6.717,3575.7,3575.6,2.79673341]
[1754070316041,0.1,3575.9,3575.8,5.79651558]
[1754070316244,0.1,3576.3,3576.2,2.79626419]
[1754070316411,4.713,3576.3,3576.2,2.79626419]
[1754070316612,4.713,3576.3,3576.2,0.14]
[1754070316812,0.1,3576.0,3575.9,2.79643801]
[1754070317358,0.1,3576.0,3575.9,2.93643801]
[1754070317513,0.1,3576.2,3576.1,2.79634238]
[1754070317708,4.717,3576.2,3576.1,2.79634238]
[1754070317943,0.1,3575.9,3575.7,2.79664376]
[1754070318114,0.1,3575.9,3575.8,0.14]
[1754070318440,0.1,3575.9,3575.3,2.7968911]
[1754070318441,0.55,3575.8,3575.4,0.14]
[1754070318607,0.1,3575.5,3575.4,0.14]
[1754070318807,0.1,3575.1,3574.8,0.4678]
[1754070319073,0.1,3575.1,3574.7,5.79737669]
[1754070319074,4.618,3575.0,3574.9,1.36227281]
[1754070319249,0.1,3575.6,3574.9,1.36227281]
[1754070319250,0.1,3575.6,3575.5,2.79681163]
[1754070319407,4.716,3575.6,3574.9,0.6078]
[1754070319609,4.716,3575.6,3575.5,0.14]
[1754070320230,4.716,3575.6,3575.5,2.93681163]
[1754070320762,0.1,3575.6,3575.5,6.40461163]
[1754070320943,4.715,3575.6,3575.5,6.40461163]
[1754070321142,4.711,3575.6,3575.5,6.40461163]
[1754070321642,4.61,3575.6,3575.5,6.40461163]
[1754070321847,0.1,3576.5,3576.4,2.79610781]
[1754070322046,0.43747366,3578.0,3576.4,2.79610781]
[1754070322047,4.611,3576.7,3576.6,2.79595146]
[1754070322255,4.711,3576.7,3576.6,3.26375146]
[1754070322412,6.86,3577.7,3576.6,3.26375146]
[1754070322413,6.86,3577.7,3576.6,3.40375146]
[1754070322612,4.61,3577.6,3576.8,2.79579512]
[1754070322833,0.1,3577.2,3576.4,0.8665]
[1754070323034,0.1,3577.4,3577.3,2.79540435]
[1754070323233,4.709,3577.4,3577.3,2.79540435]
[1754070323447,6.82,3577.7,3577.6,2.79516994]
[1754070323664,0.4412,3578.5,3577.6,2.79516994]
[1754070323665,7.1612,3578.5,3578.2,2.79466569]
[1754070323841,4.607,3578.4,3578.2,2.79466569]
[1754070324149,6.72,3578.5,3578.3,0.14]
[1754070324446,6.72,3578.5,3578.4,2.79454504]
[1754070324752,11.327,3578.5,3578.3,0.14]
[1754070325047,6.72,3578.5,3577.7,2.79509181]
[1754070325247,4.605,3578.4,3578.2,2.93470124]
[1754070325449,4.604,3578.3,3578.2,2.79470124]
[1754070325747,6.82,3578.5,3578.4,2.79454504]
[1754070326041,0.1,3578.6,3578.5,2.79446695]
[1754070326248,4.703,3578.6,3578.5,2.93446695]
[1754070326453,0.4412,3580.0,3579.3,2.79384165]
[1754070326610,0.1,3578.8,3578.5,0.14]
[1754070326814,0.1,3578.6,3578.5,2.93441081]
[1754070327220,4.703,3578.6,3578.5,2.93441081]
[1754070327749,4.703,3578.6,3578.5,0.14]
[1754070328952,0.1,3578.0,3577.9,2.79492182]
[1754070329130,4.697,3578.0,3577.9,2.79492182]
[1754070329453,0.1,3578.4,3578.3,2.79462314]
[1754070329618,4.597,3578.4,3578.3,2.79462314]
[1754070329812,4.597,3578.4,3578.3,3.40242314]
[1754070330038,4.697,3578.4,3578.3,3.40242314]
[1754070330661,4.597,3578.4,3578.3,0.6078]
[1754070330958,0.69,3579.5,3578.7,2.79427271]
[1754070331132,0.69,3579.5,3578.3,3.40242314]
[1754070331133,4.596,3579.4,3578.8,2.79417656]
[1754070331461,0.69,3579.5,3579.0,0.14]
[1754070331678,0.1,3579.1,3579.0,0.14]
[1754070331884,0.1,3579.1,3579.0,2.79407655]
[1754070332022,0.1,3579.1,3579.0,0.4678]
[1754070332023,4.594,3579.1,3579.0,0.4678]
[1754070332333,6.719,3580.1,3579.0,0.6078]
[1754070332533,4.594,3580.0,3579.0,0.6078]
[1754070332738,0.1,3579.1,3579.0,3.40187655]
[1754070333058,4.593,3579.1,3579.0,3.40187655]
[1754070333266,4.693,3579.1,3579.0,3.26187655]
[1754070333467,4.693,3579.1,3579.0,3.40187655]
[1754070333648,4.593,3579.1,3579.0,3.40187655]
[1754070333853,4.59,3579.2,3579.1,2.79399849]
[1754070334098,6.719,3580.1,3579.1,0.4678]
[1754070334268,7.0,3580.0,3579.1,1.3343]
[1754070334566,0.1,3579.2,3579.1,7.1282569]
[1754070334752,4.59,3579.4,3579.3,2.79384237]
[1754070334956,2.41,3580.0,3579.3,2.79384237]
[1754070334957,2.41,3580.0,3579.9,2.79337411]
[1754070335128,0.1,3580.0,3579.9,2.79337411]
[1754070335327,0.1,3580.0,3579.9,2.93337411]
[1754070335563,4.688,3580.0,3579.9,2.93337411]
[1754070335882,0.1,3580.0,3579.9,2.93337411]
[1754070336028,9.129,3580.1,3580.0,2.79329608]
[1754070336354,9.129,3580.1,3580.0,3.26109608]
[1754070336355,6.719,3580.1,3580.0,3.26109608]
[1754070336733,11.304,3580.1,3580.0,3.26109608]
[1754070337243,11.301,3580.1,3580.0,3.26109608]
[1754070338074,11.298,3580.1,3580.0,3.26109608]
[1754070338628,11.398,3580.1,3580.0,2.79329608]
[1754070338829,11.398,3580.1,3579.9,0.14]
[1754070339028,6.819,3580.1,3579.9,0.14]
[1754070339229,6.819,3580.1,3579.0,0.21104921]